fUSD/lending_fUSD_20250630
["ID","MTS","AMOUNT","RATE_DAILY","PERIOD"]
[368652078,1751267447208,-1928.24,0.00016438,2]
[368652080,1751267447218,-490.0,0.00016438,2]
[368652082,1751267447227,-3359.08,0.00016438,2]
[368652084,1751267447237,-490.0,0.00016438,2]
[368652086,1751267447246,-735.48,0.00016438,2]
[368652088,1751267447256,-490.0,0.00016438,2]
[368652090,1751267447266,-3125.15,0.00016438,2]
[368652092,1751267447275,-2403.69,0.00016438,2]
[368652094,1751267447284,-923.54,0.00016438,2]
[368652096,1751267447294,-490.0,0.00016438,2]
[368652098,1751267447303,-490.0,0.00016438,2]
[368652100,1751267447312,-1966.1,0.00016438,2]
[368652102,1751267447322,-490.0,0.00016438,2]
[368652104,1751267447331,-151.0,0.00016438,2]
[368652106,1751267447340,-490.0,0.00016438,2]
[368652108,1751267447350,-966.44,0.00016438,2]
[368652110,1751267447359,-1873.07,0.00016438,2]
[368652112,1751267447368,-490.0,0.00016438,2]
[368652114,1751267447378,-1907.47,0.00016438,2]
[368652116,1751267447387,-524.51,0.00016438,2]
[368652118,1751267447397,-490.0,0.00016438,2]
[368652131,1751267447505,-490.0,0.00016438,2]
[368652133,1751267447515,-490.0,0.00016438,2]
[368652134,1751267447524,-2103.92,0.00016438,2]
[368652136,1751267447533,-536.32,0.00016438,2]
[368652138,1751267447542,-732.74,0.00016438,2]
[368652140,1751267447552,-490.0,0.00016438,2]
[368652142,1751267447561,-490.0,0.00016438,2]
[368652145,1751267447571,-732.74,0.00016438,2]
[368652147,1751267447580,-490.0,0.00016438,2]
[368652149,1751267447589,-678.27,0.00016438,2]
[368652150,1751267447598,-3108.02,0.00016438,2]
[368652153,1751267447607,-2999.28,0.00016438,2]
[368652155,1751267447616,-1097.93,0.00016438,2]
[368652156,1751267447625,-490.0,0.00016438,2]
[368652158,1751267447634,-490.0,0.00016438,2]
[368652160,1751267447644,-490.0,0.00016438,2]
[368652163,1751267447654,-490.0,0.00016438,2]
[368652164,1751267447663,-490.0,0.00016438,2]
[368652167,1751267447672,-2756.49,0.00016438,2]
[368652168,1751267447682,-490.0,0.00016438,2]
[368652170,1751267447691,-554.82,0.00016438,2]
[368652172,1751267447700,-490.0,0.00016438,2]
[368652174,1751267447709,-695.5,0.00016438,2]
[368652177,1751267447719,-3034.87,0.00016438,2]
[368652179,1751267447728,-490.0,0.00016438,2]
[368652181,1751267447737,-1346.34,0.00016438,2]
[368652183,1751267447746,-490.0,0.00016438,2]
[368652184,1751267447756,-490.0,0.00016438,2]
[368652186,1751267447765,-1250.9,0.00016438,2]
[368652188,1751267447774,-1219.05,0.00016438,2]
[368652190,1751267447783,-490.0,0.00016438,2]
[368652193,1751267447793,-490.0,0.00016438,2]
[368652195,1751267447803,-582.15,0.00016438,2]
[368652197,1751267447813,-1382.33,0.00016438,2]
[368652199,1751267447822,-490.0,0.00016438,2]
[368652201,1751267447832,-1382.33,0.00016438,2]
[368652202,1751267447841,-490.0,0.00016438,2]
[368652205,1751267447851,-490.0,0.00016438,2]
[368652206,1751267447860,-1944.08,0.00016438,2]
[368652209,1751267447869,-1112.99,0.00016438,2]
[368652211,1751267447879,-1197.16,0.00016438,2]
[368652213,1751267447889,-490.0,0.00016438,2]
[368652215,1751267447898,-490.0,0.00016438,2]
[368652217,1751267447907,-490.0,0.00016438,2]
[368652219,1751267447917,-2825.96,0.00016438,2]
[368652221,1751267447928,-1879.0,0.00016438,2]
[368652223,1751267447937,-1953.12,0.00016438,2]
[368652225,1751267447946,-573.53,0.00016438,2]
[368652227,1751267447955,-573.53,0.00016438,2]
[368652229,1751267447964,-456.68227562,0.00016438,2]
[368652231,1751267447973,-1352.3,0.00016438,2]
[368652233,1751267447983,-490.0,0.00016438,2]
[368652235,1751267447993,-232.30345899,0.00016438,2]
[368652237,1751267448003,-2294.09,0.00016438,2]
[368652239,1751267448012,-881.9,0.00016438,2]
[368652241,1751267448021,-168.723371,0.00016438,2]
[368652243,1751267448031,-490.0,0.00016438,2]
[368652245,1751267448040,-1641.38,0.00016438,2]
[368652247,1751267448049,-151.0,0.00016438,2]
[368652249,1751267448058,-151.0,0.00016438,2]
[368652251,1751267448068,-3049.66,0.00016438,2]
[368652253,1751267448085,-1911.12,0.00016438,2]
[368652255,1751267448101,-5842.13,0.00016438,2]
[368652257,1751267448111,-292.491072,0.00016438,2]
[368652259,1751267448120,-3084.47,0.00016438,2]
[368652261,1751267448130,-3153.57,0.00016438,2]
[368652263,1751267448140,-151.0,0.00016438,2]
[368652265,1751267448150,-490.0,0.00016438,2]
[368652267,1751267448159,-490.0,0.00016438,2]
[368652269,1751267448168,-490.0,0.00016438,2]
[368652271,1751267448178,-177.304236,0.00016438,2]
[368652273,1751267448187,-1836.58,0.00016438,2]
[368652275,1751267448196,-490.0,0.00016438,2]
[368652277,1751267448205,-490.0,0.00016438,2]
[368652279,1751267448214,-1652.44,0.00016438,2]
[368652281,1751267448223,-490.0,0.00016438,2]
[368652283,1751267448233,-490.0,0.00016438,2]
[368652285,1751267448242,-490.0,0.00016438,2]
[368652287,1751267448251,-571.59,0.00016438,2]
[368652289,1751267448260,-153.03509,0.00016438,2]
[368652291,1751267448269,-2001.23,0.00016438,2]
[368652293,1751267448279,-151.0,0.00016438,2]
[368652295,1751267448288,-867.35,0.00016438,2]
[368652296,1751267448298,-490.0,0.00016438,2]
[368652298,1751267448307,-151.0,0.00016438,2]
[368652300,1751267448316,-1386.78,0.00016438,2]
[368652302,1751267448326,-490.0,0.00016438,2]
[368652304,1751267448335,-151.0,0.00016438,2]
[368652307,1751267448346,-151.0,0.00016438,2]
[368652309,1751267448355,-4186.63,0.00016438,2]
[368652311,1751267448365,-1794.39,0.00016438,2]
[368652312,1751267448374,-917.79,0.00016438,2]
[368652314,1751267448383,-4421.25,0.00016438,2]
[368652316,1751267448392,-656.75,0.00016438,2]
[368652318,1751267448402,-1522.34,0.00016438,2]
[368652320,1751267448412,-490.0,0.00016438,2]
[368652322,1751267448421,-2340.75,0.00016438,2]
[368652324,1751267448430,-490.0,0.00016438,2]
[368652326,1751267448439,-1246.09,0.00016438,2]
[368652328,1751267448450,-490.0,0.00016438,2]
[368652330,1751267448459,-490.0,0.00016438,2]
[368652332,1751267448468,-1009.92,0.00016438,2]
[368652334,1751267448477,-490.0,0.00016438,2]
[368652336,1751267448487,-539.61,0.00016438,2]
[368652338,1751267448496,-490.0,0.00016438,2]
[368652340,1751267448505,-6202.82,0.00016438,2]
[368652342,1751267448514,-490.0,0.00016438,2]
[368652344,1751267448523,-1115.43,0.00016438,2]
[368652346,1751267448532,-490.0,0.00016438,2]
[368652348,1751267448541,-2421.84,0.00016438,2]
[368652350,1751267448550,-490.0,0.00016438,2]
[368652352,1751267448560,-490.0,0.00016438,2]
[368652354,1751267448569,-688.18,0.00016438,2]
[368652356,1751267448579,-2848.96,0.00016438,2]
[368652358,1751267448588,-2682.09,0.00016438,2]
[368652360,1751267448598,-1286.7,0.00016438,2]
[368652362,1751267448607,-500.0,0.00016438,2]
[368652364,1751267448617,-445.51341157,0.00016438,2]
[368652366,1751267448626,-855.05,0.00016438,2]
[368652368,1751267448636,-490.0,0.00016438,2]
[368652370,1751267448646,-490.0,0.00016438,2]
[368652372,1751267448655,-2176.19,0.00016438,2]
[368652374,1751267448665,-490.0,0.00016438,2]
[368652376,1751267448673,-11614.73,0.00016438,2]
[368652378,1751267448682,-490.0,0.00016438,2]
[368652380,1751267448692,-2228.28,0.00016438,2]
[368652382,1751267448701,-490.0,0.00016438,2]
[368652384,1751267448710,-731.54,0.00016438,2]
[368652386,1751267448719,-1583.67,0.00016438,2]
[368652387,1751267448728,-5327.39,0.00016438,2]
[368652388,1751267448738,-1018.1,0.00016438,2]
[368652389,1751267448747,-4328.93,0.00016438,2]
[368652390,1751267448756,-490.0,0.00016438,2]
[368652391,1751267448765,-6135.76,0.00016438,2]
[368652392,1751267448774,-352.19262632,0.00016438,2]
[368652393,1751267448783,-490.0,0.00016438,2]
[368652394,1751267448793,-490.0,0.00016438,2]
[368652395,1751267448802,-1323.91,0.00016438,2]
[368652396,1751267448811,-516.29,0.00016438,2]
[368652397,1751267448820,-490.0,0.00016438,2]
[368652398,1751267448829,-500.0,0.00016438,2]
[368652400,1751267448839,-1718.62,0.00016438,2]
[368652401,1751267448848,-500.0,0.00016438,2]
[368652403,1751267448857,-500.0,0.00016438,2]
[368652405,1751267448866,-8554.16,0.00016438,2]
[368652407,1751267448875,-490.0,0.00016438,2]
[368652409,1751267448884,-500.0,0.00016438,2]
[368652411,1751267448893,-1225.99,0.00016438,2]
[368652413,1751267448902,-160391.08,0.00016438,2]
[368652415,1751267448912,-500.0,0.00016438,2]
[368652417,1751267448922,-2854.15,0.00016438,2]
[368652419,1751267448931,-2132.17,0.00016438,2]
[368652421,1751267448942,-522.1,0.00016438,2]
[368652423,1751267448951,-655.13,0.00016438,2]
[368652425,1751267448961,-490.0,0.00016438,2]
[368652427,1751267448970,-7346.84,0.00016438,2]
[368652429,1751267448979,-550.81,0.00016438,2]
[368652431,1751267448988,-2004.02,0.00016438,2]
[368652433,1751267448997,-490.0,0.00016438,2]
[368652435,1751267449006,-490.0,0.00016438,2]
[368652437,1751267449015,-490.0,0.00016438,2]
[368652439,1751267449025,-1237.87,0.00016438,2]
[368652441,1751267449034,-490.0,0.00016438,2]
[368652443,1751267449045,-1072.91,0.00016438,2]
[368652445,1751267449055,-1775.0,0.00016438,2]
[368652447,1751267449064,-3722.51,0.00016438,2]
[368652449,1751267449073,-1254.94,0.00016438,2]
[368652451,1751267449087,-4275.53,0.00016438,2]
[368652453,1751267449096,-1435.29,0.00016438,2]
[368652455,1751267449105,-1303.68,0.00016438,2]
[368652457,1751267449115,-790.68,0.00016438,2]
[368652459,1751267449124,-2487.65,0.00016438,2]
[368652461,1751267449133,-490.0,0.00016438,2]
[368652463,1751267449143,-490.0,0.00016438,2]
[368652465,1751267449152,-477.63165672,0.00016438,2]
[368652467,1751267449163,-6093.36,0.00016438,2]
[368652469,1751267449173,-490.0,0.00016438,2]
[368652471,1751267449183,-490.0,0.00016438,2]
[368652472,1751267449193,-490.0,0.00016438,2]
[368652473,1751267449203,-7646.99,0.00016438,2]
[368652474,1751267449212,-490.0,0.00016438,2]
[368652475,1751267449221,-923.47,0.00016438,2]
[368652476,1751267449231,-2019.83,0.00016438,2]
[368652478,1751267449240,-1301.38,0.00016438,2]
[368652480,1751267449250,-490.0,0.00016438,2]
[368652482,1751267449262,-490.0,0.00016438,2]
[368652484,1751267449271,-490.0,0.00016438,2]
[368652486,1751267449280,-490.0,0.00016438,2]
[368652488,1751267449290,-490.0,0.00016438,2]
[368652490,1751267449299,-490.0,0.00016438,2]
[368652492,1751267449309,-1960.27,0.00016438,2]
[368652494,1751267449318,-490.0,0.00016438,2]
[368652495,1751267449328,-490.0,0.00016438,2]
[368652497,1751267449337,-2537.09,0.00016438,2]
[368652499,1751267449347,-490.0,0.00016438,2]
[368652501,1751267449356,-2775.24,0.00016438,2]
[368652502,1751267449366,-2123.68,0.00016438,2]
[368652503,1751267449375,-2335.32,0.00016438,2]
[368652504,1751267449384,-1036.99,0.00016438,2]
[368652505,1751267449393,-490.0,0.00016438,2]
[368652506,1751267449404,-490.0,0.00016438,2]
[368652507,1751267449413,-350.77149973,0.00016438,2]
[368652508,1751267449423,-2536.78,0.00016438,2]
[368652509,1751267449433,-1087.96,0.00016438,2]
[368652510,1751267449443,-2360.29,0.00016438,2]
[368652511,1751267449452,-1600.14,0.00016438,2]
[368652512,1751267449462,-688.4,0.00016438,2]
[368652513,1751267449472,-3318.39,0.00016438,2]
[368652514,1751267449482,-1257.41,0.00016438,2]
[368652515,1751267449493,-490.0,0.00016438,2]
[368652516,1751267449503,-3232.03,0.00016438,2]
[368652517,1751267449513,-490.0,0.00016438,2]
[368652518,1751267449522,-490.0,0.00016438,2]
[368652519,1751267449532,-545.56,0.00016438,2]
[368652520,1751267449543,-2303.92,0.00016438,2]
[368652522,1751267449552,-3139.49,0.00016438,2]
[368652524,1751267449562,-490.0,0.00016438,2]
[368652526,1751267449573,-490.0,0.00016438,2]
[368652528,1751267449582,-2308.8,0.00016438,2]
[368652529,1751267449592,-490.0,0.00016438,2]
[368652530,1751267449602,-1297.43,0.00016438,2]
[368652531,1751267449611,-490.0,0.00016438,2]
[368652532,1751267449621,-580.32,0.00016438,2]
[368652533,1751267449631,-1651.42,0.00016438,2]
[368652534,1751267449640,-1724.71,0.00016438,2]
[368652535,1751267449651,-725.93,0.00016438,2]
[368652536,1751267449661,-490.0,0.00016438,2]
[368652537,1751267449671,-1911.13,0.00016438,2]
[368652538,1751267449680,-1110.45,0.00016438,2]
[368652539,1751267449689,-1487.7,0.00016438,2]
[368652540,1751267449698,-490.0,0.00016438,2]
[368652541,1751267449708,-845.51,0.00016438,2]
[368652543,1751267449717,-490.0,0.00016438,2]
[368652545,1751267449727,-4906.72,0.00016438,2]
[368652547,1751267449736,-490.0,0.00016438,2]
[368652549,1751267449745,-3491.35,0.00016438,2]
[368652551,1751267449755,-151.0,0.00016438,2]
[368652553,1751267449764,-1263.61,0.00016438,2]
[368652555,1751267449774,-254.511404,0.00016438,2]
[368652557,1751267449784,-490.0,0.00016438,2]
[368652559,1751267449793,-2296.15,0.00016438,2]
[368652561,1751267449802,-633.74,0.00016438,2]
[368652563,1751267449812,-1242.6,0.00016438,2]
[368652565,1751267449821,-490.0,0.00016438,2]
[368652566,1751267449831,-490.0,0.00016438,2]
[368652567,1751267449840,-26512.68,0.00016438,2]
[368652568,1751267449849,-3323.33,0.00016438,2]
[368652569,1751267449858,-705.18,0.00016438,2]
[368652570,1751267449868,-1952.89,0.00016438,2]
[368652571,1751267449877,-1474.82,0.00016438,2]
[368652572,1751267449887,-490.0,0.00016438,2]
[368652573,1751267449896,-490.0,0.00016438,2]
[368652574,1751267449907,-680.94,0.00016438,2]
[368652575,1751267449916,-490.0,0.00016438,2]
[368652576,1751267449926,-3244.23,0.00016438,2]
[368652577,1751267449935,-798.85,0.00016438,2]
[368652578,1751267449944,-656.38,0.00016438,2]
[368652579,1751267449953,-490.0,0.00016438,2]
[368652580,1751267449963,-859.82,0.00016438,2]
[368652581,1751267449972,-151.0,0.00016438,2]
[368652582,1751267449981,-158.116618,0.00016438,2]
[368652583,1751267449990,-1298.99,0.00016438,2]
[368652584,1751267449999,-536.1,0.00016438,2]
[368652585,1751267450008,-2290.8,0.00016438,2]
[368652586,1751267450018,-243.06735686,0.00016438,2]
[368652587,1751267450027,-1837.84,0.00016438,2]
[368652588,1751267450036,-2114.32,0.00016438,2]
[368652589,1751267450047,-4674.91,0.00016438,2]
[368652590,1751267450057,-490.0,0.00016438,2]
[368652591,1751267450066,-2394.77,0.00016438,2]
[368652592,1751267450077,-2566.38,0.00016438,2]
[368652593,1751267450087,-1649.59,0.00016438,2]
[368652594,1751267450096,-490.0,0.00016438,2]
[368652595,1751267450105,-3936.31,0.00016438,2]
[368652596,1751267450118,-490.0,0.00016438,2]
[368652597,1751267450127,-582.29,0.00016438,2]
[368652598,1751267450136,-528.95906128,0.00016438,2]
[368652599,1751267450146,-951.95,0.00016438,2]
[368652600,1751267450156,-490.0,0.00016438,2]
[368652601,1751267450166,-490.0,0.00016438,2]
[368652602,1751267450176,-490.0,0.00016438,2]
[368652603,1751267450185,-609.88,0.00016438,2]
[368652604,1751267450195,-1640.99,0.00016438,2]
[368652605,1751267450204,-490.0,0.00016438,2]
[368652606,1751267450213,-490.0,0.00016438,2]
[368652607,1751267450223,-2370.14,0.00016438,2]
[368652608,1751267450232,-2334.14,0.00016438,2]
[368652609,1751267450243,-769.6,0.00016438,2]
[368652610,1751267450252,-490.0,0.00016438,2]
[368652611,1751267450262,-490.0,0.00016438,2]
[368652612,1751267450272,-1097.23,0.00016438,2]
[368652613,1751267450281,-4400.26,0.00016438,2]
[368652614,1751267450290,-4040.02,0.00016438,2]
[368652615,1751267450299,-1667.15,0.00016438,2]
[368652616,1751267450309,-997.9,0.00016438,2]
[368652617,1751267450319,-1899.32,0.00016438,2]
[368652618,1751267450328,-610.94,0.00016438,2]
[368652619,1751267450337,-626.0,0.00016438,2]
[368652620,1751267450347,-22168.58,0.00016438,2]
[368652621,1751267450356,-490.0,0.00016438,2]
[368652622,1751267450365,-490.0,0.00016438,2]
[368652623,1751267450375,-10411.26,0.00016438,2]
[368652624,1751267450384,-490.0,0.00016438,2]
[368652625,1751267450393,-1503.9,0.00016438,2]
[368652626,1751267450403,-1850.16,0.00016438,2]
[368652627,1751267450412,-633.94,0.00016438,2]
[368652628,1751267450422,-490.0,0.00016438,2]
[368652629,1751267450432,-490.0,0.00016438,2]
[368652630,1751267450441,-2134.69,0.00016438,2]
[368652631,1751267450450,-829.25,0.00016438,2]
[368652632,1751267450460,-490.0,0.00016438,2]
[368652633,1751267450469,-2317.66,0.00016438,2]
[368652634,1751267450478,-151.0,0.00016438,2]
[368652635,1751267450488,-151.0,0.00016438,2]
[368652636,1751267450497,-490.0,0.00016438,2]
[368652637,1751267450507,-920.46,0.00016438,2]
[368652638,1751267450517,-490.0,0.00016438,2]
[368652639,1751267450527,-749.31,0.00016438,2]
[368652640,1751267450536,-151.0,0.00016438,2]
[368652641,1751267450545,-490.0,0.00016438,2]
[368652642,1751267450555,-8448.18,0.00016438,2]
[368652643,1751267450564,-3410.21,0.00016438,2]
[368652644,1751267450574,-490.0,0.00016438,2]
[368652645,1751267450583,-2380.02,0.00016438,2]
[368652646,1751267450593,-1469.46,0.00016438,2]
[368652647,1751267450603,-5020.18,0.00016438,2]
[368652648,1751267450612,-500.0,0.00016438,2]
[368652649,1751267450621,-2885.78,0.00016438,2]
[368652650,1751267450631,-151.0,0.00016438,2]
[368652651,1751267450640,-490.0,0.00016438,2]
[368652652,1751267450650,-283.371977,0.00016438,2]
[368652653,1751267450660,-1672.98,0.00016438,2]
[368652654,1751267450669,-490.0,0.00016438,2]
[368652655,1751267450679,-2526.47,0.00016438,2]
[368652656,1751267450688,-524.61,0.00016438,2]
[368652657,1751267450697,-787.86,0.00016438,2]
[368652658,1751267450707,-651.06,0.00016438,2]
[368652659,1751267450716,-1082.12,0.00016438,2]
[368652660,1751267450725,-490.0,0.00016438,2]
[368652661,1751267450734,-4316.91,0.00016438,2]
[368652662,1751267450743,-820.01,0.00016438,2]
[368652663,1751267450753,-2763.65,0.00016438,2]
[368652664,1751267450762,-694.37,0.00016438,2]
[368652665,1751267450771,-490.0,0.00016438,2]
[368652666,1751267450780,-490.0,0.00016438,2]
[368652667,1751267450789,-2123.26,0.00016438,2]
[368652668,1751267450798,-1970.24,0.00016438,2]
[368652669,1751267450807,-1013.82,0.00016438,2]
[368652670,1751267450817,-490.0,0.00016438,2]
[368652671,1751267450827,-530.86,0.00016438,2]
[368652672,1751267450836,-490.0,0.00016438,2]
[368652673,1751267450845,-4286.21,0.00016438,2]
[368652674,1751267450855,-2519.57,0.00016438,2]
[368652675,1751267450864,-4848.17,0.00016438,2]
[368652676,1751267450873,-552.88102244,0.00016438,2]
[368652677,1751267450882,-490.0,0.00016438,2]
[368652678,1751267450892,-490.0,0.00016438,2]
[368652679,1751267450902,-566.10112132,0.00016438,2]
[368652680,1751267450911,-725.54,0.00016438,2]
[368652681,1751267450920,-8993.72,0.00016438,2]
[368652682,1751267450930,-490.0,0.00016438,2]
[368652683,1751267450939,-4160.01,0.00016438,2]
[368652684,1751267450948,-490.0,0.00016438,2]
[368652685,1751267450958,-1260.38,0.00016438,2]
[368652686,1751267450968,-490.0,0.00016438,2]
[368652687,1751267450977,-490.0,0.00016438,2]
[368652688,1751267450987,-2029.65,0.00016438,2]
[368652689,1751267450997,-603.08,0.00016438,2]
[368652690,1751267451006,-1924.27,0.00016438,2]
[368652691,1751267451015,-3313.68,0.00016438,2]
[368652692,1751267451025,-2086.67,0.00016438,2]
[368652693,1751267451034,-247.94703362,0.00016438,2]
[368652694,1751267451044,-2021.41,0.00016438,2]
[368652695,1751267451054,-490.0,0.00016438,2]
[368652696,1751267451063,-590.59,0.00016438,2]
[368652697,1751267451073,-490.0,0.00016438,2]
[368652698,1751267451088,-717.7,0.00016438,2]
[368652699,1751267451097,-490.0,0.00016438,2]
[368652700,1751267451109,-1372.52,0.00016438,2]
[368652701,1751267451119,-501.18,0.00016438,2]
[368652702,1751267451129,-490.0,0.00016438,2]
[368652703,1751267451139,-3504.13,0.00016438,2]
[368652704,1751267451149,-490.0,0.00016438,2]
[368652705,1751267451159,-490.0,0.00016438,2]
[368652706,1751267451170,-490.0,0.00016438,2]
[368652707,1751267451180,-490.0,0.00016438,2]
[368652708,1751267451189,-979.12,0.00016438,2]
[368652709,1751267451199,-2789.08,0.00016438,2]
[368652710,1751267451208,-2629.35,0.00016438,2]
[368652711,1751267451218,-1618.44,0.00016438,2]
[368652712,1751267451227,-2613.15,0.00016438,2]
[368652713,1751267451237,-2135.62,0.00016438,2]
[368652714,1751267451247,-490.0,0.00016438,2]
[368652715,1751267451256,-1668.63,0.00016438,2]
[368652716,1751267451266,-151.0,0.00016438,2]
[368652717,1751267451275,-4586.18,0.00016438,2]
[368652718,1751267451285,-2455.27,0.00016438,2]
[368652719,1751267451295,-569.23,0.00016438,2]
[368652720,1751267451304,-1047.37,0.00016438,2]
[368652721,1751267451314,-7281.45,0.00016438,2]
[368652722,1751267451324,-3366.87,0.00016438,2]
[368652723,1751267451333,-1948.04,0.00016438,2]
[368652724,1751267451343,-660.55,0.00016438,2]
[368652725,1751267451354,-490.0,0.00016438,2]
[368652726,1751267451365,-490.0,0.00016438,2]
[368652727,1751267451375,-571.91,0.00016438,2]
[368652728,1751267451384,-490.0,0.00016438,2]
[368652729,1751267451394,-1183.36,0.00016438,2]
[368652730,1751267451405,-490.0,0.00016438,2]
[368652731,1751267451415,-921.0,0.00016438,2]
[368652732,1751267451425,-1457.61,0.00016438,2]
[368652733,1751267451435,-744.69,0.00016438,2]
[368652734,1751267451444,-534.54,0.00016438,2]
[368652735,1751267451454,-1709.28,0.00016438,2]
[368652736,1751267451464,-490.0,0.00016438,2]
[368652737,1751267451474,-490.0,0.00016438,2]
[368652738,1751267451484,-3398.56,0.00016438,2]
[368652739,1751267451494,-727.97,0.00016438,2]
[368652740,1751267451505,-2009.07,0.00016438,2]
[368652741,1751267451515,-490.0,0.00016438,2]
[368652742,1751267451525,-1154.89,0.00016438,2]
[368652743,1751267451535,-2355.9,0.00016438,2]
[368652744,1751267451545,-2600.92,0.00016438,2]
[368652745,1751267451555,-490.0,0.00016438,2]
[368652746,1751267451564,-490.0,0.00016438,2]
[368652747,1751267451574,-151.0,0.00016438,2]
[368652748,1751267451584,-151.0,0.00016438,2]
[368652749,1751267451594,-490.0,0.00016438,2]
[368652750,1751267451604,-490.0,0.00016438,2]
[368652751,1751267451613,-205.281595,0.00016438,2]
[368652752,1751267451623,-3054.74,0.00016438,2]
[368652753,1751267451632,-490.0,0.00016438,2]
[368652754,1751267451642,-490.0,0.00016438,2]
[368652755,1751267451652,-490.0,0.00016438,2]
[368652756,1751267451662,-514.0,0.00016438,2]
[368652757,1751267451673,-951.94,0.00016438,2]
[368652758,1751267451682,-670.68,0.00016438,2]
[368652759,1751267451692,-490.0,0.00016438,2]
[368652760,1751267451702,-2728.81,0.00016438,2]
[368652761,1751267451711,-490.0,0.00016438,2]
[368652762,1751267451720,-18477.67,0.00016438,2]
[368652763,1751267451730,-2369.8,0.00016438,2]
[368652764,1751267451739,-609.17,0.00016438,2]
[368652765,1751267451749,-1163.22,0.00016438,2]
[368652766,1751267451759,-1816.02,0.00016438,2]
[368652767,1751267451769,-984.63,0.00016438,2]
[368652768,1751267451778,-490.0,0.00016438,2]
[368652769,1751267451788,-3208.99,0.00016438,2]
[368652770,1751267451798,-490.0,0.00016438,2]
[368652771,1751267451808,-490.0,0.00016438,2]
[368652772,1751267451817,-490.0,0.00016438,2]
[368652773,1751267451827,-4838.42,0.00016438,2]
[368652774,1751267451836,-570.91,0.00016438,2]
[368652775,1751267451846,-2013.0,0.00016438,2]
[368652776,1751267451856,-3403.89,0.00016438,2]
[368652777,1751267451865,-490.0,0.00016438,2]
[368652778,1751267451875,-151.0,0.00016438,2]
[368652779,1751267451885,-151.0,0.00016438,2]
[368652780,1751267451895,-490.0,0.00016438,2]
[368652781,1751267451906,-151.0,0.00016438,2]
[368652782,1751267451916,-258.63314,0.00016438,2]
[368652783,1751267451926,-2877.55,0.00016438,2]
[368652784,1751267451935,-673.38,0.00016438,2]
[368652785,1751267451945,-490.0,0.00016438,2]
[368652786,1751267451954,-490.0,0.00016438,2]
[368652787,1751267451964,-2361.26,0.00016438,2]
[368652788,1751267451974,-490.0,0.00016438,2]
[368652789,1751267451983,-490.0,0.00016438,2]
[368652790,1751267451993,-2719.96,0.00016438,2]
[368652791,1751267452002,-151.0,0.00016438,2]
[368652792,1751267452012,-153.265478,0.00016438,2]
[368652793,1751267452021,-5216.61,0.00016438,2]
[368652794,1751267452031,-11003.48,0.00016438,2]
[368652795,1751267452041,-490.0,0.00016438,2]
[368652796,1751267452051,-2337.54,0.00016438,2]
[368652797,1751267452060,-490.0,0.00016438,2]
[368652798,1751267452070,-858.24,0.00016438,2]
[368652799,1751267452085,-490.0,0.00016438,2]
[368652800,1751267452095,-490.0,0.00016438,2]